[Event "Late-Titled-Tuesday-Blitz-May-14-2024"]
[Site "Chess.com"]
[Date "2024.05.14"]
[Round "8"]
[White "Dolphin_2010"]
[Black "MusicCityMaster"]
[Result "1-0"]
[WhiteElo "2621"]
[BlackElo "2460"]
[TimeControl "180+1"]
[EndTime "15:25:08 PDT"]
[Termination "Dolphin_2010 won by resignation"]

1. d4 {[%clk 0:02:59.4]} 1... Nf6 {[%clk 0:02:57.7]} 2. Bg5 {[%clk 0:02:58.6]}
2... c5 {[%clk 0:02:57.3]} 3. Bxf6 {[%clk 0:02:55.9]} 3... exf6 {[%clk
0:02:57.5]} 4. c3 {[%clk 0:02:55.5]} 4... Nc6 {[%clk 0:02:50.4]} 5. e3 {[%clk
0:02:54.8]} 5... cxd4 {[%clk 0:02:42.1]} 6. cxd4 {[%clk 0:02:54.8]} 6... d5
{[%clk 0:02:42.8]} 7. Nc3 {[%clk 0:02:55.4]} 7... Bb4 {[%clk 0:02:42.7]} 8. Ne2
{[%clk 0:02:54.9]} 8... O-O {[%clk 0:02:42.6]} 9. g3 {[%clk 0:02:55.5]} 9... Bg4
{[%clk 0:02:41.1]} 10. Bg2 {[%clk 0:02:55.4]} 10... Bxc3+ {[%clk 0:02:21.2]} 11.
bxc3 {[%clk 0:02:39.3]} 11... Rc8 {[%clk 0:02:20.9]} 12. O-O {[%clk 0:02:38.1]}
12... Na5 {[%clk 0:02:20.7]} 13. h3 {[%clk 0:02:35.6]} 13... Bxe2 {[%clk
0:02:17.1]} 14. Qxe2 {[%clk 0:02:36.5]} 14... Rxc3 {[%clk 0:02:17.1]} 15. Qb5
{[%clk 0:02:37.1]} 15... a6 {[%clk 0:01:47.3]} 16. Qxd5 {[%clk 0:02:33.6]} 16...
Qxd5 {[%clk 0:01:47.5]} 17. Bxd5 {[%clk 0:02:34.5]} 17... Rfc8 {[%clk
0:01:45.9]} 18. Rfb1 {[%clk 0:02:31.6]} 18... b5 {[%clk 0:01:45.3]} 19. a4
{[%clk 0:02:32.2]} 19... bxa4 {[%clk 0:01:29.2]} 20. Rxa4 {[%clk 0:02:33.1]}
20... Rc1+ {[%clk 0:01:25.5]} 21. Rxc1 {[%clk 0:02:32.6]} 21... Rxc1+ {[%clk
0:01:26.4]} 22. Kg2 {[%clk 0:02:33]} 22... Nc6 {[%clk 0:01:14.6]} 23. Rxa6
{[%clk 0:02:30.8]} 23... Nb8 {[%clk 0:01:13.7]} 24. Ra7 {[%clk 0:02:21.4]} 24...
h6 {[%clk 0:01:10.9]} 25. Rxf7 {[%clk 0:02:11.5]} 25... Kh7 {[%clk 0:01:09]} 26.
Re7 {[%clk 0:02:03]} 26... Na6 {[%clk 0:01:06.2]} 27. Be4+ {[%clk 0:02:00.9]}
27... Kg8 {[%clk 0:01:06.1]} 28. Bg6 {[%clk 0:02:01.4]} 28... Rc8 {[%clk
0:01:06]} 29. Re8+ {[%clk 0:01:54]} 29... Rxe8 {[%clk 0:01:05.3]} 30. Bxe8
{[%clk 0:01:54.9]} 30... Kf8 {[%clk 0:01:05.9]} 31. Bb5 {[%clk 0:01:54.5]} 31...
Nc7 {[%clk 0:01:06.2]} 32. Bc4 {[%clk 0:01:55.1]} 32... Ke7 {[%clk 0:01:06.5]}
33. e4 {[%clk 0:01:52.8]} 33... Kd6 {[%clk 0:01:06.5]} 34. Kf3 {[%clk
0:01:53.3]} 34... Na8 {[%clk 0:01:05.2]} 35. Ke3 {[%clk 0:01:53.1]} 35... Nb6
{[%clk 0:01:05.5]} 36. Bb3 {[%clk 0:01:53.8]} 36... g5 {[%clk 0:01:03.8]} 37. f4
{[%clk 0:01:53.6]} 37... Nd7 {[%clk 0:01:02.6]} 38. Ba4 {[%clk 0:01:53.1]} 38...
Nb6 {[%clk 0:01:02.1]} 39. e5+ {[%clk 0:01:53.2]} 39... fxe5 {[%clk 0:00:58.6]}
40. fxe5+ {[%clk 0:01:54.1]} 40... Ke6 {[%clk 0:00:58.8]} 41. Bb3+ {[%clk
0:01:53.4]} 41... Kf5 {[%clk 0:00:59.4]} 42. g4+ {[%clk 0:01:51.9]} 42... Kg6
{[%clk 0:00:59.9]} 43. Ke4 {[%clk 0:01:52.4]} 43... h5 {[%clk 0:00:59.4]} 44. d5
{[%clk 0:01:51.5]} 44... h4 {[%clk 0:00:59.2]} 45. d6 {[%clk 0:01:50.3]} 45...
Nd7 {[%clk 0:00:58.3]} 46. Kd5 {[%clk 0:01:50]} 46... Kg7 {[%clk 0:00:54.7]} 47.
e6 {[%clk 0:01:47.7]} 47... Nf6+ {[%clk 0:00:54.3]} 48. Ke5 {[%clk 0:01:48.2]}
1-0

[Event "Late-Titled-Tuesday-Blitz-May-14-2024"]
[Site "Chess.com"]
[Date "2024.05.14"]
[Round "8"]
[White "GiorgianBarbosa"]
[Black "Iuckyducky"]
[Result "1-0"]
[WhiteElo "2523"]
[BlackElo "2304"]
[TimeControl "180+1"]
[EndTime "15:25:10 PDT"]
[Termination "GiorgianBarbosa won on time"]

1. c4 {[%clk 0:03:00]} 1... e5 {[%clk 0:02:11.5]} 2. g3 {[%clk 0:03:00.9]} 2...
Nc6 {[%clk 0:02:11.2]} 3. Bg2 {[%clk 0:03:01.8]} 3... g6 {[%clk 0:02:11.3]} 4.
Nc3 {[%clk 0:03:02.3]} 4... Bg7 {[%clk 0:02:11.9]} 5. e3 {[%clk 0:03:03.2]} 5...
Nge7 {[%clk 0:02:12.6]} 6. Nge2 {[%clk 0:03:04.1]} 6... O-O {[%clk 0:02:13]} 7.
O-O {[%clk 0:03:04.7]} 7... d6 {[%clk 0:02:13.7]} 8. Rb1 {[%clk 0:03:05]} 8...
f5 {[%clk 0:02:14.3]} 9. b4 {[%clk 0:03:04.1]} 9... Be6 {[%clk 0:02:14.8]} 10.
d3 {[%clk 0:03:04]} 10... e4 {[%clk 0:02:15]} 11. Nf4 {[%clk 0:03:02.1]} 11...
Bf7 {[%clk 0:02:14.5]} 12. Ncd5 {[%clk 0:03:02.5]} 12... Nxd5 {[%clk 0:02:13.2]}
13. Nxd5 {[%clk 0:03:02.4]} 13... Ne5 {[%clk 0:02:12.9]} 14. dxe4 {[%clk
0:02:58.4]} 14... c6 {[%clk 0:01:41.2]} 15. Nf4 {[%clk 0:02:58.2]} 15... fxe4
{[%clk 0:00:48.6]} 16. Bxe4 {[%clk 0:02:51.7]} 16... Bxc4 {[%clk 0:00:47.6]} 17.
Re1 {[%clk 0:02:51.9]} 17... Bxa2 {[%clk 0:00:36.2]} 18. Rb2 {[%clk 0:02:46.3]}
18... Bc4 {[%clk 0:00:30.3]} 19. Rd2 {[%clk 0:02:46.3]} 19... Qf6 {[%clk
0:00:25.3]} 20. Rxd6 {[%clk 0:02:41.9]} 20... Qf7 {[%clk 0:00:15.5]} 21. h4
{[%clk 0:02:40.4]} 21... a5 {[%clk 0:00:10.2]} 22. bxa5 {[%clk 0:02:27]} 22...
Rxa5 {[%clk 0:00:10.7]} 23. Bb2 {[%clk 0:02:26]} 23... Ra2 {[%clk 0:00:10.2]}
24. Bxe5 {[%clk 0:02:21]} 24... Bxe5 {[%clk 0:00:10.6]} 25. Rd7 {[%clk
0:02:21.9]} 25... Qf6 {[%clk 0:00:06.1]} 26. Rxb7 {[%clk 0:02:16.8]} 26... Bxf4
{[%clk 0:00:04.6]} 27. exf4 {[%clk 0:02:14.4]} 27... Rd8 {[%clk 0:00:04.5]} 28.
Qf3 {[%clk 0:02:11.6]} 28... Rb2 {[%clk 0:00:02]} 29. Bxc6 {[%clk 0:02:05.7]}
29... Rxb7 {[%clk 0:00:01]} 30. Bxb7 {[%clk 0:02:06.6]} 30... Rd2 {[%clk
0:00:01.5]} 31. Re5 {[%clk 0:02:03.3]} 31... Bf7 {[%clk 0:00:01.6]} 32. Bd5
{[%clk 0:02:02.9]} 1-0

[Event "Late-Titled-Tuesday-Blitz-May-14-2024"]
[Site "Chess.com"]
[Date "2024.05.14"]
[Round "8"]
[White "Alexander_Donchenko"]
[Black "GelmanAlexander"]
[Result "1/2-1/2"]
[WhiteElo "2855"]
[BlackElo "2686"]
[TimeControl "180+1"]
[EndTime "15:25:17 PDT"]
[Termination "Game drawn by repetition"]

1. e4 {[%clk 0:03:00.9]} 1... c5 {[%clk 0:02:59.3]} 2. Nf3 {[%clk 0:03:01.3]}
2... e6 {[%clk 0:02:59.7]} 3. d4 {[%clk 0:03:01.6]} 3... cxd4 {[%clk 0:03:00.1]}
4. Nxd4 {[%clk 0:03:02.5]} 4... a6 {[%clk 0:03:00.6]} 5. c4 {[%clk 0:03:02.6]}
5... d6 {[%clk 0:03:01.2]} 6. Nc3 {[%clk 0:03:02.9]} 6... b6 {[%clk 0:03:01.4]}
7. Be2 {[%clk 0:03:03.4]} 7... Bb7 {[%clk 0:03:02]} 8. Be3 {[%clk 0:03:04]} 8...
Nd7 {[%clk 0:03:02.5]} 9. O-O {[%clk 0:03:04.1]} 9... Ngf6 {[%clk 0:03:02.8]}
10. f3 {[%clk 0:03:04.6]} 10... Rg8 {[%clk 0:03:01.7]} 11. Qd2 {[%clk
0:03:03.7]} 11... h6 {[%clk 0:03:01.5]} 12. Rad1 {[%clk 0:02:57.9]} 12... g5
{[%clk 0:03:01]} 13. Kh1 {[%clk 0:02:56.8]} 13... Rc8 {[%clk 0:02:56.8]} 14. a4
{[%clk 0:02:49.6]} 14... g4 {[%clk 0:02:49.8]} 15. fxg4 {[%clk 0:02:48.2]} 15...
Nxg4 {[%clk 0:02:49.8]} 16. Bxg4 {[%clk 0:02:41.2]} 16... Rxg4 {[%clk
0:02:50.7]} 17. Bxh6 {[%clk 0:02:36.4]} 17... Bxh6 {[%clk 0:01:49.5]} 18. Qxh6
{[%clk 0:02:37.3]} 18... Qh4 {[%clk 0:01:49.3]} 19. Qxh4 {[%clk 0:02:18.2]}
19... Rxh4 {[%clk 0:01:49.1]} 20. Nf3 {[%clk 0:02:19.1]} 20... Rf4 {[%clk
0:01:49.3]} 21. Rxd6 {[%clk 0:02:08.9]} 21... Rxc4 {[%clk 0:01:49.1]} 22. Rfd1
{[%clk 0:02:08.8]} 22... Nc5 {[%clk 0:01:36.6]} 23. Rxb6 {[%clk 0:02:04.3]}
23... Bxe4 {[%clk 0:01:29.7]} 24. Nxe4 {[%clk 0:01:59.6]} 24... Rfxe4 {[%clk
0:01:25]} 25. a5 {[%clk 0:01:51.1]} 25... Re2 {[%clk 0:01:04.4]} 26. h3 {[%clk
0:01:22.6]} 26... Ne4 {[%clk 0:00:59.9]} 27. Rg1 {[%clk 0:01:11.8]} 27... Rcc2
{[%clk 0:00:48]} 28. Nd4 {[%clk 0:01:09.8]} 28... Ng3+ {[%clk 0:00:45.4]} 29.
Kh2 {[%clk 0:01:10.2]} 29... Nf1+ {[%clk 0:00:44.5]} 30. Kh1 {[%clk 0:01:10.8]}
30... Ng3+ {[%clk 0:00:44.8]} 31. Kh2 {[%clk 0:01:11.4]} 31... Nf1+ {[%clk
0:00:40.4]} 32. Kh1 {[%clk 0:01:11.9]} 32... Ng3+ {[%clk 0:00:40.9]} 1/2-1/2

[Event "Late-Titled-Tuesday-Blitz-May-14-2024"]
[Site "Chess.com"]
[Date "2024.05.14"]
[Round "8"]
[White "FabianoCaruana"]
[Black "Dedic8"]
[Result "1-0"]
[WhiteElo "3079"]
[BlackElo "2920"]
[TimeControl "180+1"]
[EndTime "15:25:25 PDT"]
[Termination "FabianoCaruana won by resignation"]

1. e4 {[%clk 0:03:00.9]} 1... e5 {[%clk 0:03:00.1]} 2. Nf3 {[%clk 0:03:01.2]}
2... Nc6 {[%clk 0:03:00.8]} 3. Bc4 {[%clk 0:03:01.5]} 3... Nf6 {[%clk
0:03:00.9]} 4. d3 {[%clk 0:03:02]} 4... Be7 {[%clk 0:03:00.6]} 5. O-O {[%clk
0:03:02.1]} 5... O-O {[%clk 0:03:01.4]} 6. Nc3 {[%clk 0:03:01.9]} 6... d6 {[%clk
0:03:01.8]} 7. a3 {[%clk 0:03:02.4]} 7... Bg4 {[%clk 0:03:00.8]} 8. h3 {[%clk
0:03:00.9]} 8... Bxf3 {[%clk 0:03:00.9]} 9. Qxf3 {[%clk 0:03:01.1]} 9... Nd4
{[%clk 0:03:01.2]} 10. Qd1 {[%clk 0:03:01.8]} 10... c6 {[%clk 0:03:01.8]} 11.
Ba2 {[%clk 0:03:02.2]} 11... Ne6 {[%clk 0:02:57.1]} 12. Ne2 {[%clk 0:03:01.1]}
12... d5 {[%clk 0:02:53.5]} 13. Ng3 {[%clk 0:03:01.4]} 13... Re8 {[%clk
0:02:50.6]} 14. Re1 {[%clk 0:02:57.1]} 14... Qc7 {[%clk 0:02:48.8]} 15. Nf5
{[%clk 0:02:57.2]} 15... Bf8 {[%clk 0:02:45.3]} 16. Qf3 {[%clk 0:02:55.1]} 16...
Rad8 {[%clk 0:02:27.1]} 17. c3 {[%clk 0:02:54.3]} 17... a5 {[%clk 0:01:55.5]}
18. Be3 {[%clk 0:02:40.7]} 18... a4 {[%clk 0:01:53]} 19. Rad1 {[%clk 0:02:40]}
19... dxe4 {[%clk 0:01:32.9]} 20. dxe4 {[%clk 0:02:39.7]} 20... Nf4 {[%clk
0:01:32.8]} 21. Rxd8 {[%clk 0:02:28.5]} 21... Rxd8 {[%clk 0:01:31.1]} 22. Bxf4
{[%clk 0:02:21.1]} 22... exf4 {[%clk 0:01:30.9]} 23. e5 {[%clk 0:02:21.7]} 23...
Nd5 {[%clk 0:01:11.5]} 24. e6 {[%clk 0:02:14.8]} 24... fxe6 {[%clk 0:01:08.3]}
25. Nd4 {[%clk 0:02:07.9]} 25... Re8 {[%clk 0:00:46.1]} 26. Rxe6 {[%clk
0:02:03.4]} 26... Rxe6 {[%clk 0:00:20.2]} 27. Nxe6 {[%clk 0:02:04.3]} 27... Qe5
{[%clk 0:00:16.6]} 28. Nxf4 {[%clk 0:02:04.2]} 28... Bd6 {[%clk 0:00:12.2]} 29.
Bxd5+ {[%clk 0:01:56.9]} 29... Kh8 {[%clk 0:00:10.1]} 30. g3 {[%clk 0:01:53.5]}
30... cxd5 {[%clk 0:00:10.1]} 31. Qxd5 {[%clk 0:01:51.4]} 31... Qe7 {[%clk
0:00:10.5]} 32. Ne6 {[%clk 0:01:47.4]} 32... h6 {[%clk 0:00:09.3]} 33. Kg2
{[%clk 0:01:47.8]} 33... b6 {[%clk 0:00:06.6]} 34. h4 {[%clk 0:01:44.5]} 34...
Bb8 {[%clk 0:00:06.1]} 1-0

[Event "Late-Titled-Tuesday-Blitz-May-14-2024"]
[Site "Chess.com"]
[Date "2024.05.14"]
[Round "8"]
[White "carloseduar100"]
[Black "mouseslips_are_the_best"]
[Result "0-1"]
[WhiteElo "2251"]
[BlackElo "2368"]
[TimeControl "180+1"]
[EndTime "15:25:25 PDT"]
[Termination "mouseslips_are_the_best won by resignation"]

1. e4 {[%clk 0:03:00]} 1... e6 {[%clk 0:02:59.6]} 2. d3 {[%clk 0:02:43.1]} 2...
d5 {[%clk 0:02:59.7]} 3. Nd2 {[%clk 0:02:42.6]} 3... Nf6 {[%clk 0:02:59.9]} 4.
g3 {[%clk 0:02:43]} 4... c5 {[%clk 0:03:00.4]} 5. Bg2 {[%clk 0:02:43.4]} 5...
Nc6 {[%clk 0:03:01]} 6. c3 {[%clk 0:02:43]} 6... Be7 {[%clk 0:03:00.9]} 7. Ngf3
{[%clk 0:02:43.6]} 7... O-O {[%clk 0:03:01]} 8. O-O {[%clk 0:02:44.3]} 8... Qc7
{[%clk 0:02:59.8]} 9. Re1 {[%clk 0:02:44.8]} 9... h6 {[%clk 0:02:57.3]} 10. e5
{[%clk 0:02:43.7]} 10... Nd7 {[%clk 0:02:56.1]} 11. d4 {[%clk 0:02:44.6]} 11...
cxd4 {[%clk 0:02:40.9]} 12. cxd4 {[%clk 0:02:44.2]} 12... f6 {[%clk 0:02:41.5]}
13. Qc2 {[%clk 0:02:26.2]} 13... fxe5 {[%clk 0:02:18.3]} 14. dxe5 {[%clk
0:02:24.3]} 14... Qb6 {[%clk 0:02:18.8]} 15. a3 {[%clk 0:02:11.7]} 15... Ndxe5
{[%clk 0:02:16.3]} 16. b4 {[%clk 0:01:57.2]} 16... Nd4 {[%clk 0:02:12.1]} 17.
Nxd4 {[%clk 0:01:51.5]} 17... Qxd4 {[%clk 0:02:11.6]} 18. Nb3 {[%clk 0:01:52.2]}
18... Qd3 {[%clk 0:02:04.4]} 19. Qc7 {[%clk 0:01:42.6]} 19... Bf6 {[%clk
0:01:57.7]} 20. Nc5 {[%clk 0:01:38.7]} 20... Nf3+ {[%clk 0:01:50.6]} 21. Bxf3
{[%clk 0:01:37.3]} 21... Qxf3 {[%clk 0:01:51.5]} 22. Bf4 {[%clk 0:01:16.6]}
22... b6 {[%clk 0:01:35.2]} 23. Qc6 {[%clk 0:01:00.1]} 23... bxc5 {[%clk
0:01:33.5]} 24. Qxa8 {[%clk 0:00:59.7]} 24... Bxa1 {[%clk 0:01:31.3]} 25. Rxa1
{[%clk 0:01:00.6]} 25... e5 {[%clk 0:01:25.2]} 26. Be3 {[%clk 0:00:39.8]} 26...
Bh3 {[%clk 0:01:23.6]} 27. Qxf8+ {[%clk 0:00:21]} 27... Kxf8 {[%clk 0:01:23.2]}
28. Bxc5+ {[%clk 0:00:21.9]} 28... Kg8 {[%clk 0:01:23.4]} 0-1

[Event "Late-Titled-Tuesday-Blitz-May-14-2024"]
[Site "Chess.com"]
[Date "2024.05.14"]
[Round "8"]
[White "Akhayan"]
[Black "remyrushbrooke"]
[Result "1-0"]
[WhiteElo "2453"]
[BlackElo "2329"]
[TimeControl "180+1"]
[EndTime "15:25:27 PDT"]
[Termination "Akhayan won by resignation"]

1. e4 {[%clk 0:03:00.9]} 1... g6 {[%clk 0:02:59.5]} 2. d4 {[%clk 0:03:00.2]}
2... Bg7 {[%clk 0:02:58.9]} 3. Nc3 {[%clk 0:03:00.7]} 3... d6 {[%clk 0:02:58]}
4. f4 {[%clk 0:03:01.2]} 4... Nc6 {[%clk 0:02:54.7]} 5. Nf3 {[%clk 0:03:01.1]}
5... e5 {[%clk 0:02:49.9]} 6. fxe5 {[%clk 0:02:54.6]} 6... dxe5 {[%clk
0:02:49.6]} 7. d5 {[%clk 0:02:55.3]} 7... Nd4 {[%clk 0:02:45.9]} 8. Be3 {[%clk
0:02:53.7]} 8... Bg4 {[%clk 0:02:37.2]} 9. Be2 {[%clk 0:02:48.5]} 9... Bxf3
{[%clk 0:02:35.5]} 10. Bxf3 {[%clk 0:02:43.1]} 10... Ne7 {[%clk 0:02:36]} 11.
O-O {[%clk 0:02:41.2]} 11... O-O {[%clk 0:02:34.4]} 12. Ne2 {[%clk 0:02:38.6]}
12... Nxf3+ {[%clk 0:02:22.5]} 13. Rxf3 {[%clk 0:02:37.4]} 13... f5 {[%clk
0:02:20.3]} 14. Nc3 {[%clk 0:02:25.5]} 14... f4 {[%clk 0:02:14.7]} 15. Bc5
{[%clk 0:02:25.3]} 15... g5 {[%clk 0:02:02.5]} 16. d6 {[%clk 0:02:21.2]} 16...
cxd6 {[%clk 0:02:02.1]} 17. Qxd6 {[%clk 0:02:21.2]} 17... Qxd6 {[%clk
0:01:48.6]} 18. Bxd6 {[%clk 0:02:21.5]} 18... Rfe8 {[%clk 0:01:48.6]} 19. Bxe7
{[%clk 0:02:20.2]} 19... Rxe7 {[%clk 0:01:49.5]} 20. Nd5 {[%clk 0:02:19.7]}
20... Rd7 {[%clk 0:01:48.5]} 21. g4 {[%clk 0:02:16.5]} 21... Kf7 {[%clk
0:01:43.3]} 22. h3 {[%clk 0:02:15.6]} 22... Bf8 {[%clk 0:01:42.7]} 23. Kg2
{[%clk 0:02:11.1]} 23... Rc8 {[%clk 0:01:41.5]} 24. c3 {[%clk 0:02:10]} 24... b5
{[%clk 0:01:37.2]} 25. Rd1 {[%clk 0:02:07.8]} 25... Ke6 {[%clk 0:01:33.6]} 26.
Rfd3 {[%clk 0:02:07.2]} 26... Rc4 {[%clk 0:01:28.2]} 27. Kf3 {[%clk 0:02:06]}
27... Rc6 {[%clk 0:01:25]} 28. Nxf4+ {[%clk 0:01:59.4]} 28... exf4 {[%clk
0:01:22.6]} 29. Rxd7 {[%clk 0:01:59.2]} 29... b4 {[%clk 0:01:22.4]} 30. cxb4
{[%clk 0:01:45.7]} 30... Bd6 {[%clk 0:01:18.6]} 31. Rxh7 {[%clk 0:01:21.2]}
31... Be7 {[%clk 0:01:06.2]} 32. Rh6+ {[%clk 0:01:15]} 32... Bf6 {[%clk
0:01:06.1]} 33. e5 {[%clk 0:01:08.4]} 33... Kxe5 {[%clk 0:01:05.9]} 34. Re1+
{[%clk 0:01:04.8]} 34... Kd5 {[%clk 0:01:04]} 35. b5 {[%clk 0:00:55]} 35... Rd6
{[%clk 0:01:01.7]} 36. Rd1+ {[%clk 0:00:54]} 1-0

[Event "Late-Titled-Tuesday-Blitz-May-14-2024"]
[Site "Chess.com"]
[Date "2024.05.14"]
[Round "8"]
[White "Siemba"]
[Black "TanitoluwaAps116"]
[Result "0-1"]
[WhiteElo "2515"]
[BlackElo "2745"]
[TimeControl "180+1"]
[EndTime "15:25:41 PDT"]
[Termination "TanitoluwaAps116 won by resignation"]

1. e4 {[%clk 0:03:00.9]} 1... c5 {[%clk 0:02:58.1]} 2. Nf3 {[%clk 0:02:54]} 2...
e6 {[%clk 0:02:57.7]} 3. d4 {[%clk 0:02:53.4]} 3... cxd4 {[%clk 0:02:58.2]} 4.
Nxd4 {[%clk 0:02:54.3]} 4... Nf6 {[%clk 0:02:58.5]} 5. Nc3 {[%clk 0:02:53]} 5...
Nc6 {[%clk 0:02:58.7]} 6. Ndb5 {[%clk 0:02:48.6]} 6... d6 {[%clk 0:02:58.5]} 7.
Bf4 {[%clk 0:02:48]} 7... e5 {[%clk 0:02:59.2]} 8. Bg5 {[%clk 0:02:47.7]} 8...
a6 {[%clk 0:02:59.7]} 9. Na3 {[%clk 0:02:48.1]} 9... b5 {[%clk 0:02:57.6]} 10.
Nd5 {[%clk 0:02:47.2]} 10... Be7 {[%clk 0:02:53.7]} 11. Bxf6 {[%clk 0:02:47.1]}
11... Bxf6 {[%clk 0:02:53.8]} 12. c3 {[%clk 0:02:47.7]} 12... Rb8 {[%clk
0:02:51.6]} 13. Nc2 {[%clk 0:02:47.3]} 13... Bg5 {[%clk 0:02:51.6]} 14. a4
{[%clk 0:02:42.4]} 14... bxa4 {[%clk 0:02:50.3]} 15. Ncb4 {[%clk 0:02:42.3]}
15... Nxb4 {[%clk 0:02:49.3]} 16. cxb4 {[%clk 0:02:43.2]} 16... O-O {[%clk
0:02:47.3]} 17. Qxa4 {[%clk 0:02:40]} 17... f5 {[%clk 0:02:37.5]} 18. Bc4 {[%clk
0:02:17.3]} 18... fxe4 {[%clk 0:02:28.1]} 19. Ne7+ {[%clk 0:02:10.3]} 19... Kh8
{[%clk 0:02:27.6]} 20. Nc6 {[%clk 0:02:11]} 20... Qb6 {[%clk 0:02:23]} 21. O-O
{[%clk 0:02:07.3]} 21... Bd7 {[%clk 0:02:05.3]} 22. Bd5 {[%clk 0:02:06.9]} 22...
Rfc8 {[%clk 0:01:59.4]} 23. Qxa6 {[%clk 0:01:27.5]} 23... Bxc6 {[%clk
0:01:57.7]} 24. Bxc6 {[%clk 0:01:17.3]} 24... Rxc6 {[%clk 0:01:51.3]} 25. b5
{[%clk 0:01:09.6]} 25... Rcc8 {[%clk 0:01:40.4]} 26. Rfd1 {[%clk 0:01:02.7]}
26... e3 {[%clk 0:01:33.6]} 27. Rxd6 {[%clk 0:00:56.4]} 27... exf2+ {[%clk
0:01:30.1]} 28. Kf1 {[%clk 0:00:28.4]} 28... Qxb5+ {[%clk 0:01:19.4]} 29. Qxb5
{[%clk 0:00:24.7]} 29... Rxb5 {[%clk 0:01:20.3]} 30. Kxf2 {[%clk 0:00:19.9]}
30... Rxb2+ {[%clk 0:01:19.9]} 31. Kf3 {[%clk 0:00:20.3]} 31... h6 {[%clk
0:01:19.9]} 32. Re1 {[%clk 0:00:19.2]} 32... Rc3+ {[%clk 0:01:18.7]} 33. Kg4
{[%clk 0:00:18.8]} 33... Rxg2+ {[%clk 0:01:18.3]} 34. Kh5 {[%clk 0:00:19.3]}
34... Rh3+ {[%clk 0:01:17.3]} 35. Kg6 {[%clk 0:00:19.7]} 35... Be7+ {[%clk
0:01:17.3]} 36. Kf7 {[%clk 0:00:19.5]} 36... Bxd6 {[%clk 0:01:18.2]} 0-1

[Event "Late-Titled-Tuesday-Blitz-May-14-2024"]
[Site "Chess.com"]
[Date "2024.05.14"]
[Round "8"]
[White "giovannibrandao7"]
[Black "lilylg"]
[Result "0-1"]
[WhiteElo "2296"]
[BlackElo "2210"]
[TimeControl "180+1"]
[EndTime "15:25:46 PDT"]
[Termination "lilylg won by resignation"]

1. e4 {[%clk 0:03:00.9]} 1... c6 {[%clk 0:02:55.6]} 2. d4 {[%clk 0:03:00.2]}
2... d5 {[%clk 0:02:56.2]} 3. Nc3 {[%clk 0:03:01.1]} 3... dxe4 {[%clk
0:02:56.3]} 4. Nxe4 {[%clk 0:03:02]} 4... Bf5 {[%clk 0:02:56.4]} 5. Ng3 {[%clk
0:03:02.2]} 5... Bg6 {[%clk 0:02:56.7]} 6. Nf3 {[%clk 0:03:02.8]} 6... e6 {[%clk
0:02:55.2]} 7. h4 {[%clk 0:03:03.3]} 7... h6 {[%clk 0:02:55.3]} 8. h5 {[%clk
0:03:03.9]} 8... Bh7 {[%clk 0:02:55.6]} 9. Bd3 {[%clk 0:03:04.4]} 9... Bxd3
{[%clk 0:02:55.7]} 10. Qxd3 {[%clk 0:03:05]} 10... Nf6 {[%clk 0:02:53.6]} 11.
Bf4 {[%clk 0:03:05.3]} 11... Nbd7 {[%clk 0:02:53.1]} 12. O-O-O {[%clk
0:03:04.7]} 12... Be7 {[%clk 0:02:40.8]} 13. Kb1 {[%clk 0:03:02.9]} 13... Nd5
{[%clk 0:02:38.5]} 14. Bd2 {[%clk 0:03:02.2]} 14... c5 {[%clk 0:02:36.2]} 15.
dxc5 {[%clk 0:02:59.2]} 15... Nxc5 {[%clk 0:02:35.2]} 16. Qb5+ {[%clk
0:02:59.1]} 16... Qd7 {[%clk 0:02:35.1]} 17. Qxd7+ {[%clk 0:02:58.5]} 17... Nxd7
{[%clk 0:02:35.1]} 18. c4 {[%clk 0:02:55.3]} 18... N5b6 {[%clk 0:02:32.2]} 19.
b3 {[%clk 0:02:48.1]} 19... a5 {[%clk 0:02:30.5]} 20. Ne4 {[%clk 0:02:42.5]}
20... a4 {[%clk 0:02:28.4]} 21. Nd4 {[%clk 0:02:30.8]} 21... axb3 {[%clk
0:02:25.2]} 22. axb3 {[%clk 0:02:30.9]} 22... Nf6 {[%clk 0:01:47]} 23. Rh4
{[%clk 0:02:10.7]} 23... O-O {[%clk 0:01:36.5]} 24. Nxf6+ {[%clk 0:01:23.4]}
24... Bxf6 {[%clk 0:01:36.3]} 25. Rg4 {[%clk 0:01:20.8]} 25... Nd7 {[%clk
0:01:34.8]} 26. Bxh6 {[%clk 0:01:06.3]} 26... Kh7 {[%clk 0:01:29.5]} 27. Bc1
{[%clk 0:00:59.6]} 27... Nc5 {[%clk 0:01:26.3]} 28. Bb2 {[%clk 0:00:22]} 28...
Rfd8 {[%clk 0:01:26.1]} 29. Re1 {[%clk 0:00:19.6]} 29... Nd3 {[%clk 0:01:23.3]}
30. Rd1 {[%clk 0:00:07.8]} 30... Nxb2 {[%clk 0:01:22.5]} 31. Kxb2 {[%clk
0:00:08.7]} 31... e5 {[%clk 0:01:23]} 0-1